Cogmind - Beta 15 @@@ ROGUE MODE // 2025.09.16 @ 13:33:56 Player: 1R0 Result: Destroyed by YI-UF0 with YI-UF0's Doublenader Performance ------------- Evolutions (0) 0 Regions Visited (4) 800 Robots Destroyed (13) 65 Value Destroyed (386) 386 Prototype IDs (0) 0 Alien Tech Used (0) 0 Bonus (25) 25 TOTAL SCORE: 1276 Bonus ------- Follower Combat Kills 25 Cogmind --------- Core Integrity 0/250 Matter 274/300 Energy 160/160 System Corruption 0% Temperature Cool (0) Movement Walking (120) Location -9/Mines Parts ------- > --- POWER (1) -------- Light Nuclear Core > --- PROPULSION (2) --- Improved Aluminum Leg Improved Aluminum Leg > --- UTILITY (2) ------ Small Storage Unit System Shield > --- WEAPON (2) ------- Grenade Launcher > --- INVENTORY (8) ---- Ion Engine Aluminum Leg Aluminum Leg Aluminum Leg Improved Aluminum Leg Small Laser High-powered Shotgun Datajack Peak State ------------ > --- POWER ------------ Light Nuclear Core > --- PROPULSION ------- Improved Aluminum Leg Improved Aluminum Leg > --- UTILITY ---------- Small Storage Unit System Shield > --- WEAPON ----------- Small Laser Light Assault Rifle > --- INVENTORY -------- Ion Engine Aluminum Leg Aluminum Leg Aluminum Leg Improved Aluminum Leg Small Laser High-powered Shotgun Datajack [Rating: 14] Favorites ----------- Power Ion Engine Engine Ion Engine Power Core Light Nuclear Core Propulsion Improved Aluminum Leg Treads Light Treads Leg Improved Aluminum Leg Utility Small Storage Unit Device Heat Sink Storage Small Storage Unit Hackware System Shield Weapon Light Assault Rifle Energy Gun EM Pulse Gun Ballistic Gun Light Assault Rifle Launcher Grenade Launcher Build | -11 -10 -10 -10 -9 ------- Run | Yrd Mat Min Exi Min Slots Evolved . | . . . . . Power . | . . . . . Propulsion . | . . . . . Utility . | . . . . . Weapon . | . . . . . Parts Attached 18 | 6 6 5 . 1 Power 2 | 1 . 1 . . Engine 1 | 1 . . . . Core 1 | . . 1 . . Reactor . | . . . . . Propulsion 5 | 2 2 1 . . Treads 2 | 2 . . . . Leg 3 | . 2 1 . . Wheel . | . . . . . Hover . | . . . . . Flight . | . . . . . Utility 4 | 1 2 1 . . Device 2 | . 2 . . . Storage 1 | 1 . . . . Processor . | . . . . . Hackware 1 | . . 1 . . Protection . | . . . . . Artifact . | . . . . . Weapon 7 | 2 2 2 . 1 Energy Gun 4 | 1 2 1 . . Energy Cannon . | . . . . . Ballistic Gun 2 | 1 . 1 . . Ballistic Cannon . | . . . . . Launcher 1 | . . . . 1 Special Weapon . | . . . . . Impact Weapon . | . . . . . Slashing Weapon . | . . . . . Piercing Weapon . | . . . . . Special Melee Weapon . | . . . . . Unidentified Prototypes . | . . . . . Parts Lost 8 | . 3 4 . 1 Power 1 | . 1 . . . Propulsion 1 | . . 1 . . Utility 1 | . . 1 . . Weapon 5 | . 2 2 . 1 Highest Loss Streak 4 | . 2 4 . 1 To Critical Strikes . | . . . . . Average Backups 6 | 3 6 7 8 8 Power . | . 1 1 1 1 Propulsion 3 | 1 3 4 4 4 Utility . | . . . . . Weapon 1 | 1 1 . 2 2 Tool/Special . | . . . . . Unused Backups 12 | . 3 1 . 8 Power 1 | . . . . 1 Propulsion 7 | . 2 1 . 4 Utility . | . . . . . Weapon 3 | . 1 . . 2 Tool/Special 1 | . . . . 1 Average Slot Usage (%) 94 | . 94 86 100 100 Engine 6 | . 13 . . . Core 6 | . . 11 14 14 Treads 11 | . 23 . . . Leg 16 | . 4 26 28 28 Device 4 | . 9 1 . . Storage 14 | . 14 14 14 14 Hackware 5 | . . 3 14 14 Energy Gun 14 | . 19 14 14 4 Ballistic Gun 11 | . 8 12 14 14 Launcher 2 | . . . . 9 Peak Build Rating 14 | 6 10 14 14 14 Average Rating 9 | 4 7 10 14 13 On Entrance 8 | . 6 9 14 14 Naked Turns . | . . . . . Heaviest Build 14 | 13 14 12 12 14 Greatest Support 40 | 40 40 26 26 26 Greatest Overweight (x) 4 | . 4 . . . Average Overweight (x) . | . . . . . Largest Inventory Capacity 8 | 8 8 8 8 8 Average Capacity 7 | 7 8 8 8 8 Most Carried 8 | 6 8 8 8 8 Average Carried 6 | 3 6 7 8 8 Final Capacity 8 | 8 8 8 8 8 Final Carried 8 | 4 8 8 8 8 Class Distribution -------------------- 100% | Mutant Dominant Class ---------------- Mutant | -10/Materials Mutant | -10/Mines Mutant | -10/Exiles Mutant | -9/Mines Resources | -11 -10 -10 -10 -9 ----------- Run | Yrd Mat Min Exi Min Matter Collected 377 | 260 71 46 . . Remotely 47 | . 25 22 . . Salvage Created 466 | . 379 60 . 27 Parts 23 | . 19 1 . 3 Haulers Intercepted . | . . . . . Recyclers Shooed 1 | . 1 . . . Parts Field Recycled . | . . . . . Retrieved Matter . | . . . . . Parts Self-Destructed . | . . . . . Prevented . | . . . . . Kills | -11 -10 -10 -10 -9 ------- Run | Yrd Mat Min Exi Min Combat Hostiles Destroyed 12 | . 10 1 . 1 Guns 10 | . 9 1 . . AOE 2 | . 1 . . 1 Classes Destroyed 3 | . 3 . . . Worker 1 | . 1 . . . Swarmer 3 | . 3 . . . Grunt 9 | . 7 1 . 1 Best Kill Streak 3 | . 3 1 . 1 Combat Bots Only 3 | . 3 1 . 1 Max Kills in Single Turn 2 | . 2 1 . 1 Gunslinging . | . . . . . Exploded 1 | . 1 . . 1 Melee . | . . . . . Uniques/NPCs Destroyed . | . . . . . Combat | -11 -10 -10 -10 -9 -------- Run | Yrd Mat Min Exi Min Hostile Shots Fired 110 | . 80 24 . 6 Missed 34 | . 27 3 . 4 Hits 76 | . 53 21 . 2 Projectile 76 | . 53 21 . 2 AOE 6 | . . . . 6 Damage Taken 1160 | . 740 305 . 115 Core 259 | . 174 55 . 30 Absorbed by Shields . | . . . . . Core Remaining (%) 100 | 100 . . . . Volleys Fired 53 | . 38 14 . 1 Largest 2 | . 2 2 . 2 Hottest 80 | . 80 80 . 50 Shots Fired 102 | . 74 26 . 2 Gun 101 | . 74 26 . 1 Cannon . | . . . . . Launcher 1 | . . . . 1 Special . | . . . . . Kinetic 39 | . 27 11 . 1 Thermal 20 | . 9 11 . . Explosive 1 | . . . . 1 Electromagnetic 42 | . 38 4 . . Robot Hit Streak 9 | . 9 5 . . Robot Miss Streak 4 | . 4 2 . . Penetration Max . | . . . . . Secondary Targets 2 | . 2 . . . Max Gunslinging Chain 1 | . 1 . . . Shots Hit Robots 60 | . 44 16 . . Core Hits 26 | . 19 4 . 3 Critical Kills . | . . . . . Critical Parts Destroyed . | . . . . . Critical Strikes . | . . . . . Melee Attacks . | . . . . . Impact . | . . . . . Slashing . | . . . . . Piercing . | . . . . . Sneak Attacks . | . . . . . Combat Hostiles . | . . . . . Follow-up Attacks . | . . . . . Damage Inflicted 971 | . 712 154 . 105 Guns 691 | . 537 154 . . Cannons . | . . . . . Explosions 280 | . 175 . . 105 Melee . | . . . . . Ramming . | . . . . . Kinetic 193 | . 137 56 . . Thermal 300 | . 228 72 . . Explosive 105 | . . . . 105 Electromagnetic 373 | . 347 26 . . Impact . | . . . . . Slashing . | . . . . . Piercing . | . . . . . Highest Corruption . | . . . . . Average Corruption . | . . . . . Corruption Purged . | . . . . . Corruption Blocked . | . . . . . Overload Shots . | . . . . . Overflow Damage 40 | . 40 . . . Projectiles . | . . . . . Explosions 40 | . 40 . . . Melee . | . . . . . Knockbacks . | . . . . . Impact . | . . . . . Kinetic . | . . . . . Secondary . | . . . . . Self-Inflicted Damage 97 | . 97 . . . Shots 3 | . 3 . . . Rammed 1 | . 1 . . . Targets Rammed 1 | . 1 . . . Kicked . | . . . . . Crushed . | . . . . . Highest Temperature 126 | . 94 126 . 14 Average Temperature 39 | . 36 45 . 10 Received Heat Transfer 450 | . 279 171 . . Siege Activations . | . . . . . Martial Activations . | . . . . . Shielding Activations . | . . . . . Robots Disrupted . | . . . . . Combat Hostiles . | . . . . . Robots Corrupted . | . . . . . Combat Hostiles . | . . . . . Parts Fried . | . . . . . Impact Corruptions . | . . . . . Robots Melted . | . . . . . Combat Hostiles . | . . . . . Parts Melted . | . . . . . Heat Transferred 500 | . 325 175 . . Parts Sabotaged . | . . . . . Parts Stolen . | . . . . . Parts Stripped . | . . . . . Power Chain Reactions 3 | . 3 . . . Alert | -11 -10 -10 -10 -9 ------- Run | Yrd Mat Min Exi Min Maximum Alert Level . | . . . . . Low Security (%) 100 | 100 100 100 . 100 Level 1 . | . . . . . Level 2 . | . . . . . Level 3 . | . . . . . Level 4 . | . . . . . Level 5 . | . . . . . High Security . | . . . . . Max Security . | . . . . . Peak Influence 148 | . 148 52 . 20 Initial 52 | . . 52 . . Average 30 | . 62 11 . 1 Influence Increases 399 | . 318 51 . 30 Destroy 0b10 Robot/C 260 | . 200 40 . 20 Destroy 0b10 Robot/NC 5 | . 5 . . . Destroy Leader 60 | . 50 10 . . Allied During Kill 1 | . . 1 . . Successful Hack 18 | . 18 . . . Disable Machine 15 | . 15 . . . Destroy Structure 25 | . 15 . . 10 Lose Combat Pursuer 15 | . 15 . . . Influence Decreases 389 | . 182 187 . 20 Entered New Map 84 | . . 84 . . Time Decay 222 | . 152 60 . 10 Lost Part 70 | . 30 30 . 10 Lost Ally 13 | . . 13 . . Squads Dispatched 3 | . 3 . . . Investigation 1 | . 1 . . . Extermination . | . . . . . Reinforcement 2 | . 2 . . . Assault . | . . . . . Garrison . | . . . . . Intercept . | . . . . . Searches Triggered . | . . . . . Construction Impeded . | . . . . . Haulers Reinforced . | . . . . . Active Scanning Responses . | . . . . . Cargo Convoy Interrupts . | . . . . . Stealth | -11 -10 -10 -10 -9 --------- Run | Yrd Mat Min Exi Min Distress Signals 1 | . 1 . . . Communications Jammed . | . . . . . Distress Signals . | . . . . . Times Spotted 27 | . 19 5 . 3 Peak Tracking Total 5 | . 5 3 . 3 Tactical Retreats 1 | . 1 . . . Traps | -11 -10 -10 -10 -9 ------- Run | Yrd Mat Min Exi Min Traps Triggered 2 | . 2 . . . Indirectly . | . . . . . Trap Hack Attempts . | . . . . . Triggered . | . . . . . Disarmed . | . . . . . Reprogrammed . | . . . . . Reused . | . . . . . Traps Extracted . | . . . . . Installed . | . . . . . Triggered . | . . . . . Machines | -11 -10 -10 -10 -9 ---------- Run | Yrd Mat Min Exi Min Machines Disabled 2 | . 2 . . . Max in Single Turn 1 | . 1 . . . Machines Repaired . | . . . . . Machines Dismantled . | . . . . . Machines Sabotaged . | . . . . . Overloaded Fab Kills . | . . . . . Hacking | -11 -10 -10 -10 -9 --------- Run | Yrd Mat Min Exi Min Machines Accessed 4 | . 3 1 . . Terminals 3 | . 3 . . . Fabricators . | . . . . . Repair Stations . | . . . . . Recycling Units . | . . . . . Scanalyzers . | . . . . . Garrison Access . | . . . . . Total Hacks 12 | . 11 1 . . Successful 9 | . 8 1 . . Failed 3 | . 3 . . . Catastrophic . | . . . . . Database Lockouts . | . . . . . Manual . | . . . . . Terminals 11 | . 11 . . . Fabricators . | . . . . . Repair Stations . | . . . . . Recycling Units . | . . . . . Scanalyzers . | . . . . . Garrison Access . | . . . . . Terminal Hacks 9 | . 8 1 . . Record 5 | . 5 . . . Robot Analysis 1 | . 1 . . . Open Door 1 | . . 1 . . Locate Traps 1 | . 1 . . . Dispatch Records 1 | . 1 . . . Fabricator Hacks . | . . . . . Repair Station Hacks . | . . . . . Recycling Unit Hacks . | . . . . . Scanalyzer . | . . . . . Garrison Access Hacks . | . . . . . Unauthorized Hacks . | . . . . . Terminals . | . . . . . Fabricators . | . . . . . Repair Stations . | . . . . . Recycling Units . | . . . . . Scanalyzers . | . . . . . Garrison Access . | . . . . . Data Cores Recovered . | . . . . . Used . | . . . . . Hacking Detections 1 | . 1 . . . Full Trace Events 1 | . 1 . . . Feedback Events . | . . . . . Feedback Blocked . | . . . . . Robot Schematics Acquired . | . . . . . Robots Built . | . . . . . Authchips . | . . . . . Time . | . . . . . Total Robot Build Rating . | . . . . . Part Schematics Acquired . | . . . . . Parts Built . | . . . . . Authchips . | . . . . . Time . | . . . . . Total Part Build Rating . | . . . . . Parts Repaired . | . . . . . Time . | . . . . . Parts Recycled . | . . . . . Recycled Matter . | . . . . . Retrieved Matter . | . . . . . Retrieved Components . | . . . . . Parts Scanalyzed . | . . . . . Part Schematics Acquired . | . . . . . Parts Damaged . | . . . . . Bothacking | -11 -10 -10 -10 -9 ------------ Run | Yrd Mat Min Exi Min Used RIF Installer . | . . . . . Robots Hacked . | . . . . . Non-combat . | . . . . . Combat . | . . . . . Robot Hacks Applied . | . . . . . Relay Couplers Released . | . . . . . Fabnet Peak Effective % . | . . . . . Robots Rewired . | . . . . . Allies Hacked . | . . . . . Hacks Repelled . | . . . . . Allies | -11 -10 -10 -10 -9 -------- Run | Yrd Mat Min Exi Min Total Allies 1 | . . 1 . . Largest Group 1 | . . 1 . . Highest-Rated Group 31 | . . 31 . . Highest-Rated Ally 31 | . . 31 . . Total Orders . | . . . . . Ally Attacks 4 | . . 4 . . Total Damage 61 | . . 61 . . Kills 1 | . . 1 . . Allies Corrupted . | . . . . . Allies Melted . | . . . . . Intel | -11 -10 -10 -10 -9 ------- Run | Yrd Mat Min Exi Min Active Infowar (turns) . | . . . . . Robot Analysis Total 1 | . 1 . . . Derelict Logs Recovered 1 | . . 1 . . Drone Launches . | . . . . . Drone Recoveries . | . . . . . Exploration | -11 -10 -10 -10 -9 ------------- Run | Yrd Mat Min Exi Min Turns Passed 882 | 95 377 178 40 192 Spaces Moved 509 | 55 156 108 34 156 Core 8 | 7 1 . . . Treads 172 | 48 124 . . . Legs 329 | . 31 108 34 156 Wheels . | . . . . . Hover . | . . . . . Flight . | . . . . . Fastest Speed 50 | 50 120 120 120 120 Average Speed 132 | 146 153 120 120 120 Slowest Speed 250 | 160 250 120 120 120 Overloaded Moves . | . . . . . Propulsion Burnouts . | . . . . . Robots Hopped . | . . . . . Potential Cave-ins . | . . . . . Cave-ins Triggered . | . . . . . Exploration Rate (%) 25 | 4 36 32 8 46 Regions Visited 4 Branch Regions 3 Pre-discovered Areas 1 | . . 1 . . Known Exits Taken . | . . . . . Unknown Exits Taken 4 | 1 1 1 1 . Scrap Searched . | . . . . . Spaces Dug . | . . . . . Terrain Destroyed 24 | . 14 . . 10 Melee . | . . . . . Projectile . | . . . . . AOE 24 | . 14 . . 10 Terrain Rammed . | . . . . . Walls Destroyed . | . . . . . Machines Disabled . | . . . . . Actions | -11 -10 -10 -10 -9 --------- Run | Yrd Mat Min Exi Min Total 622 | 70 228 132 33 159 Wait 14 | . 14 . . . Move 505 | 54 155 107 33 156 Hop . | . . . . . Pick Up 24 | 10 9 5 . . Fast Attach 5 | . 3 1 . 1 Attach 12 | 6 2 4 . . Detach . | . . . . . Swap 1 | . 1 . . . Drop 7 | . 5 1 . 1 Fire 53 | . 38 14 . 1 Melee . | . . . . . Ram . | . . . . . Kick . | . . . . . Crush 1 | . 1 . . . Escape Stasis . | . . . . . Rewire . | . . . . . Trap . | . . . . . Miscellaneous . | . . . . . Route ------- -11/Scrapyard -10/Materials -10/Mines -10/Exiles -9/Mines History --------- Turn | Location | Event 11 | -11/Scrapyard | Discovered new exit (range 16) 96 | -11/Scrapyard | Entered Materials 301 | -10/Materials | Build established: Mutant 391 | -10/Materials | Core integrity fell below 50% 458 | -10/Materials | Discovered new exit (range 7) 473 | -10/Materials | Entered Mines 484 | -10/Mines | Core integrity fell below 20% 492 | -10/Mines | Escorted by a lone wolf Derelict 512 | -10/Mines | Learned location of Storage (-8) 518 | -10/Mines | Lost 4 parts (1p1u2w) 580 | -10/Mines | Learned Materials stockpile data 603 | -10/Mines | Met a Derelict who couldn't figure out how to use a Trap Extractor 645 | -10/Mines | Deemed a non-threat by the Exiles lab entrance 646 | -10/Mines | Discovered new exit (range 5) 651 | -10/Mines | Entered Exiles 673 | -10/Exiles | Discovered new exit (range 15) 691 | -10/Exiles | Entered Mines 746 | -9/Mines | YI-UF0 nonchalantly dropped a Grenade Launcher on the ground 883 | -9/Mines | Destroyed by YI-UF0 with YI-UF0's Doublenader Last Messages --------------- 00701_ T-07 Excavator is excavating. 00707_ K-01 Serf collects debris. 00709_ T-07 Excavator is excavating. 00710_ K-01 Serf collects debris. 00714_ T-07 Excavator is excavating. 00719_ K-01 Serf collects debris. 00722_ T-07 Excavator is excavating. 00726_ K-01 Serf collects debris. 00727_ T-07 Excavator is excavating. 00746_ YI-UF0 nonchalantly drops a Grenade Launcher on the ground. 00754_ Dropped Sml. Laser. 00754_ Acquired Grenade Launcher. 00762_ YI-UF0 mumbles something. 00863_ K-01 Serf collects debris. 00870_ G-34 Mercenary destroyed. [Achievement: Dramatic Entrance] 00876_ S-10 Pest destroyed. 00881_ YI-UF0 mumbles something. 00881_ Lgt. Assault Rifle destroyed. 00883_ The unstable cave ceiling collapses. Map ----- +----------------------------------------------------+ | ??????????????????????? ????????????????# ##### | | ??????????????????????? ###???????????# | | ??????????????????????? ??????????# ##### | | ?????????????????????? #????????# #?????? | | ????????????????????????# ##???### ###???? | | ???????????????????????????# #??# #???? | | ????????????????????????????# ### """ #???? | | ????????????????????????????# """ #???? | | ????????????????????????????# ## # """ #???? | | ????????????????????????????# ???# # #???? | | ????????????????????????????# ?????# ########???? | | ??????????????????????????? # ???# ############ | | ????????????????#??????????## = ???# | | ????????????????# ?????????# g ?#?############# | | ????????????????# ????##### ? #?????????????# | | ????????????????? ##### ??##??????????# | | ?????????????????? [ ?# ??????????# | | ????????????????#?? ## ???????????# | | ????????????????# ?? ????????????# | | ????????????????# ?# [ ?????????????# | | ??????????????????$ # # ?????????????## | | ??????????????????? ? #??????????????? | | ????????????????????# #??# #??????????????? | | ????????????????????# ##### ######?????????? | | ????????????????????# #?????????? | | ????????????????????# @ ########## #?????????? | | ????????????????????# #???????# #??????#### | | ???????????????###??### # ##########?# ######## # | | ???????????????# # #?# | | ???????????????# ! #?######### | | ???????????????#=%[ #?????????# | | ???????????????# #????????## | | ???????????????## # #????????# | | ????????????????#?### #???????# | | ????????????????????# #???????## | | ????????????????????################????????###### | | ?????????????????????????????????????????????????? | | ?????????????????????????????????????????????????? | | | | | | | | | | | | | | | | | | | | | | | | | +----------------------------------------------------+ Best States ------------- Heat Dissipation 35 Energy Generation 14 Energy Capacity 250 Matter Stores 300 Matter Capacity 300 Sight Range 16 Terrain Scan Density 10 Evasion (%) 55 Recoil Reduction 2 Defensive Hacking 10 Item Schematics ----------------- None Robot Schematics ------------------ None Fabricated ------------ Nothing Repaired ---------- Nothing Alien Tech Used ----------------- None Achievements -------------- Dramatic Entrance Challenges ------------ None Game ------ Seed GunResetDetector Manual? 0 Play Time 00:08:44 Cumulative 5.6 hours Start 2025.09.16 @ 13:26:19 End 2025.09.16 @ 13:33:56 Sessions 1 Manual Loads 0 Difficulty Rogue Special Mode None Game No. 25 Rogue 22 Adventurer 3 Explorer 0 Win Type - Total 0 Types 0/0/0/0/0/0/0/0/0/0 Lore% 11 Gallery% 12 Achievement% 13 Wizard Run 0 Options --------- Layout 0 ASCII 0 Keyboard 0 Movement Mouse Keybinds 0 Fullscreen 2 Font 24/Smallcaps Map View 38x25 Zoom Use 100% Tactical HUD 1 Map Filters NONE Filters NONE Steam 1 RUN: 7c767376-5a2d-4a02-88b5-c4fae2e931f1